bitfinex/quotes_SOLUSD_20230402
["timestamp","ask_amount","ask_price","bid_price","bid_amount"]
[1680470037063,34.337864,20.503,20.484,10.0]
[1680470037371,10.0,20.499,20.484,10.0]
[1680470037670,10.0,20.497,20.484,10.0]
[1680470038169,10.0,20.497,20.483,108.1703]
[1680470038366,10.0,20.495,20.485,10.0]
[1680470039169,17.0,20.496,20.485,10.0]
[1680470039367,10.0,20.499,20.485,10.0]
[1680470039562,10.0,20.497,20.485,10.0]
[1680470041765,17.0,20.498,20.485,10.0]
[1680470042760,56.7,20.51,20.485,10.0]
[1680470042960,56.7,20.51,20.487,10.0]
[1680470042961,10.0,20.503,20.487,10.0]
[1680470044477,10.0,20.501,20.487,10.0]
[1680470047178,10.0,20.501,20.486,17.0]
[1680470051072,10.0,20.501,20.486,10.0]
[1680470051279,10.0,20.499,20.484,10.0]
[1680470051472,10.0,20.497,20.484,10.0]
[1680470052074,10.0,20.497,20.483,108.1703]
[1680470052286,10.0,20.495,20.485,10.0]
[1680470052474,10.0,20.495,20.483,108.1703]
[1680470052674,10.0,20.495,20.485,10.0]
[1680470053277,10.0,20.495,20.484,10.0]
[1680470053975,10.0,20.495,20.483,108.1703]
[1680470054174,10.0,20.495,20.485,10.0]
[1680470054678,17.0,20.496,20.485,10.0]
[1680470056182,17.0,20.496,20.484,10.0]
[1680470057488,17.0,20.496,20.483,108.1703]
[1680470057785,17.0,20.496,20.485,10.0]
[1680470058686,17.0,20.496,20.484,10.0]
[1680470059797,10.0,20.497,20.484,10.0]
[1680470060092,10.0,20.495,20.484,10.0]
[1680470061692,10.0,20.495,20.482,19.513716]
[1680470061988,10.0,20.493,20.482,19.513716]
[1680470062389,17.0,20.492,20.482,19.513716]
[1680470062699,10.0,20.491,20.482,19.513716]
[1680470066692,17.0,20.492,20.482,19.513716]
[1680470067706,17.0,20.492,20.476,10.0]
[1680470068904,10.0,20.497,20.478,10.0]
[1680470069108,10.0,20.495,20.479,17.0]
[1680470069400,10.0,20.495,20.48,10.0]
[1680470069603,10.0,20.495,20.482,10.0]
[1680470074814,10.0,20.495,20.479,17.0]
[1680470074988,10.0,20.495,20.478,17.0]
[1680470077794,28.36,20.5,20.48,28.34]
[1680470077987,17.0,20.499,20.481,37.0]
[1680470078688,17.0,20.499,20.482,115.633]
[1680470078887,17.0,20.499,20.483,20.0]
[1680470080900,24.337864,20.499,20.483,20.0]
[1680470089929,17.0,20.499,20.483,20.0]
[1680470099823,28.32,20.5,20.483,20.0]
[1680470101315,130.45381285,20.504,20.484,17.0]
[1680470102524,17.0,20.503,20.484,17.0]
[1680470103125,17.0,20.503,20.484,128.1239]
[1680470110136,24.337864,20.503,20.484,128.1239]
[1680470110525,24.337864,20.503,20.484,111.1239]
[1680470132248,84.69411176,20.503,20.484,111.1239]
[1680470140863,77.35624776,20.503,20.484,111.1239]
[1680470141553,84.69411176,20.503,20.484,111.1239]
[1680470142061,28.32,20.5,20.484,111.1239]
[1680470142267,17.0,20.499,20.484,111.1239]
[1680470149364,77.35624776,20.499,20.484,111.1239]
[1680470155773,17.0,20.499,20.484,111.1239]
[1680470164797,20.0,20.498,20.482,115.633]
[1680470164986,17.0,20.497,20.482,115.633]
[1680470165285,20.0,20.496,20.482,115.633]
[1680470165482,17.0,20.495,20.482,115.633]
[1680470168383,132.57528996,20.495,20.482,115.633]
[1680470169991,28.26,20.49,20.482,115.633]
[1680470170196,17.0,20.489,20.482,115.633]
[1680470170577,17.0,20.489,20.469,14.75484164]
[1680470170793,20.0,20.488,20.466,117.3856]
[1680470171083,17.0,20.487,20.466,117.3856]
[1680470171288,20.0,20.486,20.466,117.3856]
[1680470171491,17.0,20.485,20.466,117.3856]
[1680470172190,20.0,20.486,20.466,117.3856]
[1680470172390,17.0,20.485,20.466,117.3856]
[1680470173683,17.0,20.487,20.466,117.3856]
[1680470173878,20.0,20.486,20.466,117.3856]
[1680470174082,17.0,20.485,20.466,117.3856]
[1680470175486,20.0,20.484,20.466,117.3856]
[1680470175793,17.0,20.483,20.466,117.3856]
[1680470181794,17.0,20.483,20.473,39.043609]
[1680470192001,28.37,20.48,20.473,39.043609]
[1680470192192,17.0,20.483,20.473,39.043609]
[1680470193504,20.0,20.484,20.473,39.043609]
[1680470193708,20.0,20.487,20.473,39.043609]
[1680470194895,17.0,20.486,20.473,39.043609]
[1680470195086,20.0,20.485,20.473,39.043609]
[1680470195288,17.0,20.484,20.473,39.043609]
[1680470195892,17.0,20.484,20.466,117.3856]
[1680470208309,17.0,20.484,20.468,20.0]
[1680470211015,56.8,20.48,20.468,20.0]
[1680470211307,0.07692685,20.471,20.468,20.0]
[1680470216207,37.0,20.479,20.471,0.03248212]
[1680470217715,32.0,20.479,20.471,0.03248212]
[1680470220217,39.337864,20.479,20.471,0.03248212]
[1680470220919,32.0,20.479,20.471,0.03248212]
[1680470221911,39.337864,20.479,20.471,0.03248212]
[1680470233430,99.69411176,20.479,20.471,0.03248212]
[1680470233616,55.2190422,20.478,20.471,0.03248212]
[1680470233816,37.0,20.477,20.471,0.03248212]
[1680470234017,44.337864,20.477,20.471,0.03248212]
[1680470234216,7.337864,20.476,20.471,0.03248212]
[1680470234411,37.0,20.475,20.471,0.03248212]
[1680470237932,44.337864,20.475,20.471,0.03248212]
[1680470244333,6.80552938,20.474,20.471,0.03248212]
[1680470244632,17.0,20.473,20.471,0.03248212]
[1680470244833,24.337864,20.473,20.471,0.03248212]
[1680470245032,7.337864,20.472,20.471,0.03248212]
[1680470245235,24.337864,20.472,20.471,0.03248212]
[1680470254245,17.0,20.472,20.471,0.03248212]
[1680470255151,41.99270071,20.475,20.471,0.03248212]
[1680470256539,17.0,20.474,20.471,0.03248212]
[1680470260447,17.0,20.474,20.46,113.1885]
[1680470266252,17.0,20.474,20.46,113.1885]
[1680470267543,24.337864,20.474,20.46,113.1885]
[1680470268852,28.43,20.47,20.458,112.9406]
[1680470269050,17.0,20.469,20.458,112.9406]
[1680470291580,17.0,20.469,20.449,127.58241362]
[1680470291781,27.337864,20.468,20.45,114.058]
[1680470291984,17.0,20.467,20.45,114.058]
[1680470292289,20.0,20.466,20.45,114.058]
[1680470292483,17.0,20.465,20.45,114.058]
[1680470292685,20.0,20.464,20.45,114.058]
[1680470292885,17.0,20.463,20.45,114.058]
[1680470295694,17.0,20.463,20.452,28.43]
[1680470301482,20.0,20.464,20.452,28.43]
[1680470301782,17.0,20.463,20.452,28.43]
[1680470301983,17.0,20.465,20.452,28.43]
[1680470302183,22.76,20.46,20.452,28.43]
[1680470302388,17.0,20.459,20.452,28.43]
[1680470302791,17.0,20.459,20.45,114.058]
[1680470318098,31.98429966,20.459,20.45,114.058]
[1680470328614,14.98429966,20.459,20.45,114.058]
[1680470329116,22.76,20.46,20.45,114.058]
[1680470332015,37.38205528,20.46,20.45,114.058]
[1680470339004,22.76,20.46,20.45,114.058]
[1680470342512,20.0,20.466,20.45,114.058]
[1680470342711,20.0,20.468,20.45,114.058]
[1680470343925,17.0,20.467,20.45,114.058]
[1680470344221,20.0,20.466,20.45,114.058]
[1680470344404,17.0,20.465,20.45,114.058]
[1680470344608,20.0,20.464,20.45,114.058]
[1680470346624,20.0,20.464,20.45,136.818]
[1680470348112,20.0,20.464,20.451,17.0]
[1680470348312,20.0,20.468,20.451,17.0]
[1680470348511,108.8962,20.471,20.452,20.0]
[1680470348717,17.0,20.469,20.452,20.0]
[1680470352319,79.82344231,20.469,20.45,114.058]
[1680470352627,20.0,20.468,20.45,114.058]
[1680470352830,17.0,20.467,20.45,114.058]
[1680470353013,20.0,20.466,20.45,114.058]
[1680470353214,17.0,20.465,20.45,114.058]
[1680470353408,20.0,20.464,20.45,114.058]
[1680470353630,17.0,20.463,20.45,114.058]
[1680470382057,22.72,20.46,20.45,114.058]
[1680470382252,17.0,20.459,20.45,114.058]
[1680470393670,22.72,20.46,20.45,114.058]
[1680470401662,17.0,20.459,20.45,114.058]
[1680470405157,17.0,20.459,20.449,113.0665]
[1680470411061,16.91542219,20.459,20.449,113.0665]
[1680470435379,20.0,20.458,20.449,113.0665]
[1680470435684,17.0,20.457,20.449,113.0665]
[1680470435878,20.0,20.456,20.449,113.0665]
[1680470436087,17.0,20.455,20.449,113.0665]
[1680470436385,20.0,20.454,20.449,113.0665]
[1680470436568,17.0,20.453,20.449,113.0665]
[1680470437182,17.0,20.453,20.446,114.2636]
[1680470437484,17.0,20.453,20.442,22.78]
[1680470437685,22.79,20.45,20.442,22.78]
[1680470437876,17.0,20.449,20.442,22.78]
[1680470438076,17.0,20.449,20.439,118.5262]
[1680470438583,20.0,20.448,20.439,118.5262]
[1680470438781,17.0,20.447,20.439,118.5262]
[1680470439084,22.79,20.45,20.439,118.5262]
[1680470439386,17.0,20.449,20.439,118.5262]
[1680470443182,17.0,20.449,20.431,14.78045832]
[1680470443370,20.0,20.448,20.432,118.1209]
[1680470443569,17.0,20.447,20.432,118.1209]
[1680470443773,20.0,20.446,20.432,118.1209]
[1680470443975,17.0,20.445,20.432,118.1209]
[1680470444482,20.0,20.444,20.432,118.1209]
[1680470444673,17.0,20.443,20.432,118.1209]
[1680470446473,28.22,20.44,20.431,22.79]
[1680470446674,37.0,20.439,20.431,22.79]
[1680470453279,97.8655412,20.439,20.417,111.239]
[1680470455381,80.8655412,20.439,20.417,111.239]
[1680470455582,73.5276772,20.439,20.417,111.239]
[1680470456796,17.0,20.438,20.418,39.148099]
[1680470456997,20.0,20.437,20.418,39.148099]
[1680470457197,17.0,20.436,20.418,39.148099]
[1680470457389,20.0,20.435,20.418,39.148099]
[1680470457589,17.0,20.434,20.418,39.148099]
[1680470470712,17.0,20.434,20.417,111.239]
[1680470475517,14.70351864,20.439,20.417,111.239]
[1680470475709,28.54,20.44,20.42,7.337864]
[1680470476926,17.0,20.439,20.418,54.59639986]
[1680470477099,17.0,20.439,20.428,116.0754]
[1680470486423,16.5,20.439,20.428,116.0754]
[1680470489418,28.54,20.44,20.428,116.0754]
[1680470490710,17.0,20.439,20.428,116.0754]
[1680470505330,28.52,20.44,20.428,116.0754]
[1680470506743,17.0,20.439,20.428,116.0754]
[1680470507730,53.5276772,20.447,20.428,116.0754]
[1680470508042,20.0,20.446,20.428,116.0754]
[1680470509037,20.0,20.446,20.429,17.0]
[1680470510733,17.0,20.446,20.429,17.0]
[1680470510934,20.0,20.445,20.429,17.0]
[1680470511128,17.0,20.444,20.429,17.0]
[1680470513148,20.0,20.445,20.429,17.0]
[1680470513323,20.0,20.449,20.429,17.0]
[1680470513524,17.0,20.448,20.429,17.0]
[1680470513751,20.0,20.447,20.429,17.0]
[1680470513939,17.0,20.446,20.429,17.0]
[1680470514440,20.0,20.445,20.429,17.0]
[1680470518945,20.0,20.445,20.428,116.0754]
[1680470519146,17.0,20.444,20.428,116.0754]
[1680470526352,28.34,20.44,20.428,116.0754]
[1680470526653,17.0,20.439,20.428,116.0754]
[1680470538758,28.34,20.44,20.428,116.0754]
[1680470540462,17.0,20.439,20.428,116.0754]
[1680470555171,31.53941002,20.439,20.428,116.0754]
[1680470558280,31.53941002,20.439,20.427,106.0823]
[1680470564882,14.53941002,20.439,20.427,106.0823]
[1680470565065,22.66,20.44,20.427,106.0823]
[1680470565266,22.66,20.44,20.428,17.0]
[1680470565465,22.66,20.44,20.427,106.0823]
[1680470572665,22.66,20.44,20.428,17.0]
[1680470579894,22.66,20.44,20.427,106.0823]
[1680470592985,22.75,20.44,20.427,106.0823]
[1680470597784,17.0,20.439,20.427,106.0823]
[1680470599701,17.0,20.439,20.422,111.5577]
[1680470599895,17.0,20.439,20.423,20.0]
[1680470626518,31.81653231,20.439,20.423,20.0]
[1680470630526,109.0528,20.438,20.423,20.0]
[1680470630699,17.0,20.437,20.423,20.0]
[1680470641519,14.81653231,20.439,20.423,20.0]
[1680470641822,22.83,20.44,20.423,20.0]
[1680470642928,17.0,20.439,20.423,20.0]
[1680470643427,22.83,20.44,20.423,20.0]
[1680470644833,17.0,20.439,20.423,20.0]
[1680470660746,31.58515933,20.439,20.423,20.0]
[1680470685870,14.58515933,20.439,20.423,20.0]
[1680470686064,22.82,20.44,20.424,17.0]
[1680470692176,22.82,20.44,20.423,20.0]
[1680470693884,22.82,20.44,20.424,17.0]
[1680470714890,22.6,20.44,20.424,17.0]
[1680470715274,17.0,20.439,20.423,20.0]
[1680470729104,22.6,20.44,20.423,20.0]
[1680470729402,22.6,20.44,20.424,17.0]
[1680470741800,116.7134,20.445,20.424,24.337864]
[1680470742001,116.7134,20.445,20.425,20.0]
[1680470742201,116.7134,20.445,20.426,17.0]
[1680470742401,116.7134,20.445,20.426,24.337864]
[1680470742606,116.7134,20.445,20.427,27.337864]
[1680470742821,17.0,20.444,20.428,17.0]
[1680470743116,17.0,20.444,20.429,20.0]
[1680470744013,116.7134,20.445,20.429,20.0]
[1680470744310,17.0,20.444,20.429,20.0]
[1680470751898,37.63588651,20.45,20.429,20.0]
[1680470752101,110.5706,20.448,20.43,17.0]
[1680470752408,17.0,20.447,20.431,20.0]
[1680470754615,110.5706,20.448,20.432,17.0]
[1680470754797,110.5706,20.448,20.433,20.0]
[1680470755001,117.5707,20.449,20.434,17.0]
[1680470759417,14.84588651,20.45,20.434,75.20761199]
[1680470759616,110.2907,20.455,20.434,82.54547599]
[1680470760223,20.0,20.454,20.434,82.54547599]
[1680470761211,132.4849,20.46,20.434,82.54547599]
[1680470761212,20.0,20.459,20.434,82.54547599]
[1680470761517,17.0,20.458,20.434,82.54547599]
[1680470761722,20.0,20.457,20.434,82.54547599]
[1680470761922,17.0,20.456,20.434,82.54547599]
[1680470762122,20.0,20.455,20.434,82.54547599]
[1680470771632,132.4849,20.46,20.434,82.54547599]
[1680470771838,132.4849,20.46,20.435,20.0]
[1680470771839,17.0,20.459,20.435,20.0]
[1680470772016,17.0,20.459,20.44,22.71]
[1680470772429,17.0,20.459,20.441,37.0]
[1680470778042,17.0,20.459,20.441,20.0]
[1680470778237,17.0,20.459,20.441,37.0]
[1680470778238,22.78,20.45,20.441,37.0]
[1680470778638,17.0,20.449,20.441,37.0]
[1680470782446,22.78,20.45,20.441,37.0]
[1680470782942,17.0,20.449,20.441,37.0]
[1680470788449,17.0,20.449,20.431,113.1357]
[1680470788748,17.0,20.449,20.432,44.337864]
[1680470792636,17.0,20.449,20.432,67.117864]
[1680470800559,17.0,20.449,20.433,7.337864]
[1680470800754,17.0,20.449,20.434,37.0]
[1680470802551,37.30422893,20.45,20.434,37.0]
[1680470802738,17.0,20.449,20.434,44.337864]
[1680470813665,37.09422893,20.45,20.434,44.337864]
[1680470813852,37.09422893,20.45,20.434,102.54547599]
[1680470814165,37.09422893,20.45,20.434,85.54547599]
[1680470814363,17.0,20.449,20.434,27.337864]
[1680470824575,17.0,20.449,20.434,20.0]
[1680470824774,17.0,20.449,20.433,20.0]
[1680470890318,37.32422893,20.45,20.434,17.0]
[1680470890509,37.32422893,20.45,20.433,20.0]
[1680470890711,37.32422893,20.45,20.434,17.0]
[1680470891713,17.0,20.449,20.434,17.0]
[1680470895426,37.32422893,20.45,20.434,17.0]
[1680470899425,37.24422893,20.45,20.434,17.0]
[1680470901833,116.0422,20.457,20.434,17.0]
[1680470902133,37.0,20.456,20.434,17.0]
[1680470907526,17.0,20.456,20.44,22.79]
[1680470907730,116.0422,20.457,20.44,22.79]
[1680470907937,17.0,20.455,20.441,20.0]
[1680470908116,17.0,20.456,20.441,20.0]
[1680470909733,132.4849,20.46,20.441,20.0]
[1680470909919,132.4849,20.46,20.442,17.0]
[1680470910120,109.6949,20.46,20.443,20.0]
[1680470910423,109.6949,20.46,20.444,17.0]
[1680470915233,56.15026436,20.465,20.444,17.0]
[1680470915434,115.4138,20.467,20.444,17.0]
[1680470915619,20.0,20.466,20.444,17.0]
[1680470915818,20.0,20.466,20.45,22.79]
[1680470916739,17.0,20.465,20.45,22.79]
[1680470916927,20.0,20.464,20.45,22.79]
[1680470920233,130.25923204,20.467,20.45,22.79]
[1680470920440,130.25923204,20.467,20.451,20.0]
[1680470920839,130.25923204,20.467,20.452,17.0]
[1680470920840,14.84543204,20.467,20.452,17.0]
[1680470921022,188.47404964,20.47,20.453,19.90781]
[1680470921225,17.0,20.469,20.453,19.90781]
[1680470926235,154.62177649,20.47,20.453,19.90781]
[1680470926441,154.62177649,20.47,20.454,17.0]
[1680470927842,17.0,20.469,20.454,17.0]
[1680470928225,37.13577649,20.47,20.454,17.0]
[1680470930446,48.19804964,20.475,20.455,20.0]
[1680470930740,20.0,20.476,20.46,22.64]
[1680470931047,20.0,20.476,20.461,20.0]
[1680470931246,20.0,20.476,20.462,17.0]
[1680470931442,111.5738,20.478,20.463,20.0]
[1680470931644,111.5738,20.478,20.464,17.0]
[1680470931850,22.74,20.48,20.464,17.0]
[1680470932146,103.4282,20.482,20.464,17.0]
[1680470933231,17.0,20.481,20.464,17.0]
[1680470933544,17.0,20.481,20.463,20.0]
[1680470933845,17.0,20.481,20.464,17.0]
[1680470934050,17.0,20.481,20.463,17.0]
[1680470934233,17.0,20.482,20.464,20.0]
[1680470934543,17.0,20.482,20.465,17.0]
[1680470934743,131.2551,20.482,20.465,17.0]
[1680470935333,179.45314964,20.482,20.465,17.0]
[1680470936241,224.73922778,20.482,20.465,17.0]
[1680470965065,224.73922778,20.482,20.464,20.0]
[1680470965368,232.07709178,20.482,20.462,20.0]
[1680470965956,232.07709178,20.482,20.46,141.6333]
[1680470965957,232.07709178,20.482,20.461,20.0]
[1680470966670,232.07709178,20.482,20.462,17.0]
[1680470966869,232.07709178,20.482,20.463,20.0]
[1680470967075,232.07709178,20.482,20.464,17.0]
[1680470970059,232.07709178,20.482,20.463,20.0]
[1680470970264,232.07709178,20.482,20.46,141.6333]
[1680470970265,28.41,20.48,20.461,20.0]
[1680470970464,17.0,20.479,20.461,20.0]
[1680470970664,65.19804964,20.479,20.461,20.0]
[1680470970866,110.48412778,20.479,20.461,20.0]
[1680470971169,230.27072778,20.479,20.461,20.0]
[1680470971376,237.60859178,20.479,20.461,20.0]
[1680470971770,237.60859178,20.479,20.457,20.0]
[1680470971974,237.60859178,20.479,20.458,17.0]
[1680470972174,237.60859178,20.479,20.459,20.0]
[1680470972371,237.60859178,20.479,20.46,17.0]
[1680470972576,237.60859178,20.479,20.461,20.0]
[1680470983383,144.124464,20.479,20.461,20.0]
[1680470989095,144.124464,20.479,20.455,20.0]
[1680470989274,144.124464,20.479,20.46,28.41]
[1680470989475,144.124464,20.479,20.461,20.0]
[1680470992291,144.124464,20.479,20.46,22.61]
[1680470992587,144.124464,20.479,20.461,20.0]
[1680470994788,119.7866,20.479,20.462,17.0]
[1680470994995,119.7866,20.479,20.463,20.0]
[1680470996185,17.0,20.478,20.463,20.0]
[1680470998194,119.7866,20.479,20.464,17.0]
[1680471000799,114.2551,20.482,20.464,17.0]
[1680471008201,114.2551,20.482,20.463,20.0]
[1680471008506,17.0,20.481,20.464,20.0]
[1680471008704,17.0,20.481,20.462,20.0]
[1680471009688,17.0,20.481,20.463,17.0]
[1680471009890,17.0,20.481,20.464,20.0]
[1680471010104,17.0,20.481,20.465,17.0]
[1680471021798,114.2551,20.482,20.465,17.0]
[1680471022301,22.72,20.48,20.465,17.0]
[1680471024814,22.72,20.48,20.464,20.0]
[1680471025020,17.0,20.479,20.462,20.0]
[1680471025211,17.0,20.479,20.463,17.0]
[1680471025513,17.0,20.479,20.464,20.0]
[1680471029218,22.72,20.48,20.464,20.0]
[1680471029614,17.0,20.479,20.464,20.0]
[1680471030731,22.72,20.48,20.464,20.0]
[1680471030933,22.72,20.48,20.465,17.0]
[1680471034731,7.337864,20.484,20.465,17.0]
[1680471034919,17.0,20.483,20.465,17.0]
[1680471035341,24.337864,20.483,20.465,17.0]
[1680471035827,7.337864,20.483,20.465,17.0]
[1680471045438,7.337864,20.483,20.47,22.72]
[1680471045739,7.337864,20.483,20.471,17.0]
[1680471046654,22.72,20.49,20.47,22.72]
[1680471046825,20.0,20.487,20.47,22.72]
[1680471047224,7.337864,20.486,20.47,22.72]
[1680471047434,20.0,20.485,20.47,22.72]
[1680471047839,24.337864,20.484,20.47,22.72]
[1680471052026,24.337864,20.484,20.464,20.0]
[1680471052227,24.337864,20.484,20.465,17.0]
[1680471052438,24.337864,20.484,20.463,17.0]
[1680471052629,24.337864,20.484,20.464,20.0]
[1680471052828,24.337864,20.484,20.465,17.0]
[1680471065650,17.0,20.484,20.465,17.0]
[1680471065856,22.72,20.48,20.465,17.0]
[1680471066055,22.72,20.48,20.464,20.0]
[1680471066259,24.337864,20.479,20.462,20.0]
[1680471066857,7.337864,20.478,20.462,20.0]
[1680471067057,17.0,20.477,20.462,20.0]
[1680471067755,17.0,20.477,20.462,18.5]
[1680471068165,17.0,20.477,20.462,17.0]
[1680471068544,17.0,20.477,20.462,15.5]
[1680471082871,38.6575266,20.477,20.462,15.5]
[1680471083876,20.0,20.476,20.461,110.0683]
[1680471084057,17.0,20.475,20.461,110.0683]
[1680471084263,20.0,20.474,20.46,133.1855]
[1680471084474,17.0,20.473,20.46,133.1855]
[1680471085261,17.0,20.473,20.463,0.31597981]
[1680471086067,17.0,20.473,20.455,115.5286]
[1680471088985,17.0,20.473,20.456,0.31836431]
[1680471089669,125.5862,20.473,20.456,0.31836431]
[1680471093669,17.0,20.473,20.456,0.31836431]
[1680471104389,22.73,20.47,20.456,0.31836431]
[1680471104689,17.0,20.469,20.456,0.31836431]
[1680471111790,17.0,20.469,20.45,22.73]
[1680471111997,17.0,20.469,20.451,20.0]
[1680471112499,17.0,20.469,20.45,20.0]
[1680471112789,17.0,20.469,20.457,0.31802357]
[1680471114896,17.0,20.469,20.45,20.0]
[1680471115398,17.0,20.469,20.448,54.76712741]
[1680471115594,22.75,20.46,20.442,118.7351]
[1680471115782,22.75,20.46,20.443,17.0]
[1680471116187,22.75,20.46,20.443,71.76712741]
[1680471116388,22.75,20.46,20.443,79.10499141]
[1680471116795,22.75,20.46,20.444,20.0]
[1680471116995,22.75,20.46,20.445,17.0]
[1680471117701,22.75,20.46,20.444,17.0]
[1680471117997,22.75,20.46,20.444,17.32245584]
[1680471118201,22.75,20.46,20.444,17.0]
[1680471118798,22.75,20.46,20.444,24.337864]
[1680471119196,22.75,20.46,20.444,7.337864]
[1680471119404,17.0,20.459,20.443,54.76712741]
[1680471119588,17.0,20.459,20.444,20.0]
[1680471119892,17.0,20.459,20.449,22.73]
[1680471124891,22.75,20.46,20.449,22.73]
[1680471125093,17.0,20.459,20.449,22.73]
[1680471132595,17.0,20.459,20.444,20.0]
[1680471132815,17.0,20.459,20.441,20.0]
[1680471133008,17.0,20.459,20.45,0.32040948]
[1680471134311,7.337864,20.458,20.45,0.32040948]
[1680471134497,37.0,20.457,20.45,0.32040948]
[1680471134697,37.0,20.457,20.43,22.76]
[1680471135012,44.337864,20.457,20.432,7.337864]
[1680471135513,22.62,20.45,20.432,7.337864]
[1680471135717,17.0,20.449,20.432,7.337864]
[1680471136598,17.0,20.449,20.433,20.0]
[1680471136799,17.0,20.449,20.432,20.0]
[1680471137100,17.0,20.449,20.433,0.73542419]
[1680471139894,135.6149,20.449,20.433,0.49028279]
[1680471140099,135.6149,20.449,20.432,20.0]
[1680471141907,108.5725,20.448,20.432,20.0]
[1680471142294,17.0,20.447,20.432,20.0]
[1680471146019,17.0,20.447,20.44,37.732465]
[1680471146417,17.0,20.448,20.44,37.732465]
[1680471150421,20.0,20.447,20.44,37.732465]
[1680471150626,17.0,20.446,20.44,37.732465]
[1680471150816,20.0,20.445,20.44,37.732465]
[1680471151117,17.0,20.444,20.44,37.732465]
[1680471158826,17.0,20.444,20.428,116.999]
[1680471159719,17.0,20.444,20.427,104.765]
[1680471163930,27.30310987,20.445,20.427,104.765]
[1680471164129,17.0,20.444,20.427,104.765]
[1680471165527,24.42667179,20.444,20.427,104.765]
[1680471168922,20.0,20.445,20.427,104.765]
[1680471169129,20.0,20.446,20.428,118.241]
[1680471169316,20.0,20.448,20.428,118.241]
[1680471169512,20.0,20.449,20.428,118.241]
[1680471171607,17.0,20.448,20.428,118.241]
[1680471171822,20.0,20.447,20.428,118.241]
[1680471172032,17.0,20.446,20.428,118.241]
[1680471172327,20.0,20.445,20.428,118.241]
[1680471172528,17.0,20.444,20.428,118.241]
[1680471183937,17.0,20.444,20.429,0.36942007]
[1680471185938,17.0,20.444,20.426,20.0]
[1680471186140,17.0,20.444,20.427,111.2013]
[1680471186738,17.0,20.444,20.428,114.3163]
[1680471198456,20.0,20.445,20.43,28.51]
[1680471198655,20.0,20.447,20.43,28.51]
[1680471198847,20.0,20.448,20.43,28.51]
[1680471199252,20.0,20.449,20.43,28.51]
[1680471200048,17.0,20.448,20.43,28.51]
[1680471200251,84.81555444,20.458,20.431,37.0]
[1680471200449,84.81555444,20.458,20.431,44.337864]